[Event "Early-Titled-Tuesday-Blitz-June-18-2024"]
[Site "Chess.com"]
[Date "2024.06.18"]
[Round "10"]
[White "kleinebeer98"]
[Black "Rodalquilar"]
[Result "1-0"]
[WhiteElo "2972"]
[BlackElo "2827"]
[TimeControl "180+1"]
[EndTime "9:57:01 PDT"]
[Termination "kleinebeer98 won by resignation"]

1. e4 {[%clk 0:03:00.9]} 1... d5 {[%clk 0:03:00.2]} 2. exd5 {[%clk 0:03:00.9]}
2... Qxd5 {[%clk 0:03:01.1]} 3. Nc3 {[%clk 0:03:01.3]} 3... Qa5 {[%clk
0:03:01.3]} 4. b4 {[%clk 0:03:01.4]} 4... Qxb4 {[%clk 0:03:01]} 5. Rb1 {[%clk
0:03:01.9]} 5... Qd6 {[%clk 0:03:01.3]} 6. Nf3 {[%clk 0:03:02.6]} 6... Nf6
{[%clk 0:03:01.3]} 7. d4 {[%clk 0:03:02.4]} 7... c6 {[%clk 0:03:01]} 8. Bc4
{[%clk 0:03:02.2]} 8... g6 {[%clk 0:03:00.4]} 9. Ne5 {[%clk 0:03:00.5]} 9... e6
{[%clk 0:02:44.2]} 10. Qf3 {[%clk 0:03:00.6]} 10... Bg7 {[%clk 0:02:39.2]} 11.
Ne4 {[%clk 0:03:00.9]} 11... Qd8 {[%clk 0:00:40.8]} 12. Bg5 {[%clk 0:02:59]}
12... Qa5+ {[%clk 0:00:40.7]} 13. Bd2 {[%clk 0:02:47.1]} 13... Qd8 {[%clk
0:00:39.1]} 14. Bg5 {[%clk 0:02:47.7]} 14... Qa5+ {[%clk 0:00:39.2]} 15. c3
{[%clk 0:02:45.9]} 15... Nbd7 {[%clk 0:00:18.9]} 16. Nxf6+ {[%clk 0:02:25.6]}
16... Bxf6 {[%clk 0:00:09.5]} 17. Bxf6 {[%clk 0:02:26.5]} 17... Nxf6 {[%clk
0:00:09.8]} 18. Qxf6 {[%clk 0:02:27.4]} 18... Qxc3+ {[%clk 0:00:10]} 19. Kf1
{[%clk 0:02:28.1]} 19... O-O {[%clk 0:00:10.2]} 20. h4 {[%clk 0:02:18.6]} 20...
Qxd4 {[%clk 0:00:07.1]} 21. h5 {[%clk 0:02:18.5]} 21... Qd8 {[%clk 0:00:07.8]}
22. Qxd8 {[%clk 0:02:00.5]} 22... Rxd8 {[%clk 0:00:07.5]} 23. hxg6 {[%clk
0:02:01.4]} 23... hxg6 {[%clk 0:00:07.3]} 24. Rh8+ {[%clk 0:02:02.3]} 24... Kxh8
{[%clk 0:00:07.3]} 25. Nxf7+ {[%clk 0:02:03.2]} 25... Kg7 {[%clk 0:00:08]} 26.
Nxd8 {[%clk 0:02:04]} 26... Kf6 {[%clk 0:00:07.4]} 27. Nxb7 {[%clk 0:01:57.3]}
27... Rb8 {[%clk 0:00:07.7]} 28. Ba6 {[%clk 0:01:58.1]} 28... Ke7 {[%clk
0:00:07.5]} 29. Rb3 {[%clk 0:01:58.4]} 29... e5 {[%clk 0:00:04.9]} 30. Nc5
{[%clk 0:01:56.1]} 30... Rxb3 {[%clk 0:00:05.1]} 31. axb3 {[%clk 0:01:55.9]}
31... Bf5 {[%clk 0:00:05.4]} 32. f3 {[%clk 0:01:49.2]} 32... Kd6 {[%clk
0:00:05.8]} 33. Ne4+ {[%clk 0:01:49.8]} 33... Kd5 {[%clk 0:00:04.1]} 34. Ke2
{[%clk 0:01:49.5]} 34... Kd4 {[%clk 0:00:04.4]} 35. Bd3 {[%clk 0:01:44.6]} 35...
a5 {[%clk 0:00:03.9]} 36. Kd2 {[%clk 0:01:40.5]} 36... c5 {[%clk 0:00:02.8]} 37.
Nf2 {[%clk 0:01:32.2]} 37... Be6 {[%clk 0:00:02.1]} 38. Bc2 {[%clk 0:01:31.7]}
38... c4 {[%clk 0:00:02.2]} 39. bxc4 {[%clk 0:01:31.5]} 39... Bxc4 {[%clk
0:00:03.1]} 40. g3 {[%clk 0:01:29.1]} 40... g5 {[%clk 0:00:02.7]} 41. Nd1 {[%clk
0:01:28.9]} 41... Bd5 {[%clk 0:00:02.8]} 42. Ke2 {[%clk 0:01:20.1]} 42... Bc6
{[%clk 0:00:03.1]} 43. Nb2 {[%clk 0:01:00.6]} 43... Kc3 {[%clk 0:00:04]} 44. Ba4
{[%clk 0:01:01.3]} 44... Bxf3+ {[%clk 0:00:03]} 45. Kxf3 {[%clk 0:01:01.2]}
45... Kxb2 {[%clk 0:00:03.9]} 46. Ke4 {[%clk 0:01:01.6]} 46... Ka3 {[%clk
0:00:04.2]} 47. Be8 {[%clk 0:01:02.3]} 47... Kb4 {[%clk 0:00:03.8]} 48. Kxe5
{[%clk 0:01:02.8]} 48... a4 {[%clk 0:00:04.5]} 49. Bxa4 {[%clk 0:01:02.9]} 49...
Kxa4 {[%clk 0:00:05.2]} 50. Kf5 {[%clk 0:01:03.8]} 50... Kb5 {[%clk 0:00:05.9]}
51. Kxg5 {[%clk 0:01:04.6]} 51... Kc6 {[%clk 0:00:06.6]} 52. Kf6 {[%clk
0:01:05.4]} 1-0

[Event "Early-Titled-Tuesday-Blitz-June-18-2024"]
[Site "Chess.com"]
[Date "2024.06.18"]
[Round "10"]
[White "Xavier_mompel"]
[Black "Caroexpert"]
[Result "0-1"]
[WhiteElo "2438"]
[BlackElo "2621"]
[TimeControl "180+1"]
[EndTime "9:57:03 PDT"]
[Termination "Caroexpert won on time"]

1. e4 {[%clk 0:03:00.9]} 1... c6 {[%clk 0:02:57.3]} 2. d4 {[%clk 0:03:00.8]}
2... d5 {[%clk 0:02:58.2]} 3. Nc3 {[%clk 0:03:01.1]} 3... dxe4 {[%clk
0:02:58.4]} 4. Nxe4 {[%clk 0:03:02]} 4... Nf6 {[%clk 0:02:59.1]} 5. Nxf6+ {[%clk
0:03:01.7]} 5... exf6 {[%clk 0:03:00]} 6. c3 {[%clk 0:03:02.1]} 6... Bd6 {[%clk
0:03:00.6]} 7. Bd3 {[%clk 0:03:02]} 7... O-O {[%clk 0:03:01.3]} 8. Qc2 {[%clk
0:03:02.3]} 8... Re8+ {[%clk 0:03:01.9]} 9. Ne2 {[%clk 0:03:02.7]} 9... h5
{[%clk 0:03:02.6]} 10. Be3 {[%clk 0:03:02.7]} 10... Nd7 {[%clk 0:03:00.9]} 11.
c4 {[%clk 0:03:02.5]} 11... Nf8 {[%clk 0:03:00.8]} 12. O-O-O {[%clk 0:03:01.8]}
12... Be6 {[%clk 0:03:01.4]} 13. Kb1 {[%clk 0:02:53.9]} 13... Rc8 {[%clk
0:03:01.9]} 14. Nc3 {[%clk 0:02:44.1]} 14... Bb4 {[%clk 0:02:54.6]} 15. a3
{[%clk 0:02:42]} 15... Bxc3 {[%clk 0:02:54]} 16. Qxc3 {[%clk 0:02:42.9]} 16...
b5 {[%clk 0:02:54.3]} 17. Rhe1 {[%clk 0:02:22.9]} 17... Ng6 {[%clk 0:02:34.2]}
18. g3 {[%clk 0:01:49.6]} 18... Qd7 {[%clk 0:02:13.3]} 19. Qc2 {[%clk
0:01:27.3]} 19... Ne7 {[%clk 0:02:04.3]} 20. Bf4 {[%clk 0:01:21.4]} 20... bxc4
{[%clk 0:02:00.4]} 21. Bxc4 {[%clk 0:01:18.7]} 21... Bf5 {[%clk 0:01:45.8]} 22.
Bd3 {[%clk 0:01:15.4]} 22... Bxd3 {[%clk 0:01:46.4]} 23. Qxd3 {[%clk 0:01:12.8]}
23... Nd5 {[%clk 0:01:47.1]} 24. Bd2 {[%clk 0:01:10.1]} 24... Rb8 {[%clk
0:01:42.3]} 25. Rxe8+ {[%clk 0:01:00.6]} 25... Qxe8 {[%clk 0:01:38.9]} 26. Re1
{[%clk 0:00:58.4]} 26... Qd7 {[%clk 0:01:38.4]} 27. Bc3 {[%clk 0:00:50.6]} 27...
Rb3 {[%clk 0:01:31.4]} 28. Kc2 {[%clk 0:00:40.1]} 28... Rb5 {[%clk 0:01:26.4]}
29. a4 {[%clk 0:00:37.3]} 29... Rb8 {[%clk 0:01:19.1]} 30. b3 {[%clk 0:00:28]}
30... g6 {[%clk 0:01:18.9]} 31. f4 {[%clk 0:00:24.2]} 31... f5 {[%clk
0:01:15.1]} 32. Re5 {[%clk 0:00:19.3]} 32... Qb7 {[%clk 0:00:59.6]} 33. Qc4
{[%clk 0:00:17.9]} 33... Nb6 {[%clk 0:00:54]} 34. Qb4 {[%clk 0:00:13.5]} 34...
Qc8 {[%clk 0:00:50.2]} 35. Qd6 {[%clk 0:00:08.7]} 35... Nd5 {[%clk 0:00:45.5]}
36. Kd3 {[%clk 0:00:07.9]} 36... Rxb3 {[%clk 0:00:42.1]} 0-1

[Event "Early-Titled-Tuesday-Blitz-June-18-2024"]
[Site "Chess.com"]
[Date "2024.06.18"]
[Round "10"]
[White "arctic_t00"]
[Black "Mikozovna"]
[Result "0-1"]
[WhiteElo "2721"]
[BlackElo "2641"]
[TimeControl "180+1"]
[EndTime "9:57:04 PDT"]
[Termination "Mikozovna won by resignation"]

1. Nf3 {[%clk 0:03:00.9]} 1... Nf6 {[%clk 0:02:58.1]} 2. c4 {[%clk 0:03:00.7]}
2... b6 {[%clk 0:02:57.7]} 3. g3 {[%clk 0:03:00.5]} 3... Bb7 {[%clk 0:02:58]} 4.
Bg2 {[%clk 0:03:01.1]} 4... g6 {[%clk 0:02:58.4]} 5. O-O {[%clk 0:03:01]} 5...
Bg7 {[%clk 0:02:58.8]} 6. d4 {[%clk 0:03:00.2]} 6... O-O {[%clk 0:02:58.9]} 7.
Re1 {[%clk 0:02:59.6]} 7... e6 {[%clk 0:02:51.5]} 8. Nc3 {[%clk 0:02:59.1]} 8...
c5 {[%clk 0:02:49.5]} 9. d5 {[%clk 0:02:55.2]} 9... exd5 {[%clk 0:02:48.7]} 10.
cxd5 {[%clk 0:02:56.1]} 10... b5 {[%clk 0:02:39.7]} 11. Nxb5 {[%clk 0:02:52.6]}
11... Bxd5 {[%clk 0:02:39.3]} 12. Bf4 {[%clk 0:02:46.7]} 12... Na6 {[%clk
0:02:21]} 13. Qa4 {[%clk 0:02:43]} 13... Qb6 {[%clk 0:02:17.7]} 14. Nc3 {[%clk
0:01:51.7]} 14... Bc6 {[%clk 0:02:14.7]} 15. Qc2 {[%clk 0:01:51.5]} 15... d5
{[%clk 0:02:01.6]} 16. Ne5 {[%clk 0:01:39.9]} 16... Bb7 {[%clk 0:02:01.3]} 17.
Na4 {[%clk 0:01:34.1]} 17... Qb5 {[%clk 0:01:58.6]} 18. a3 {[%clk 0:01:20]}
18... Ne4 {[%clk 0:01:39.9]} 19. Nf3 {[%clk 0:00:39.3]} 19... Rfe8 {[%clk
0:01:33.7]} 20. Rac1 {[%clk 0:00:38.9]} 20... Rac8 {[%clk 0:01:28.8]} 21. h4
{[%clk 0:00:38.7]} 21... c4 {[%clk 0:01:22.1]} 22. Bh3 {[%clk 0:00:30.5]} 22...
f5 {[%clk 0:01:21.4]} 23. h5 {[%clk 0:00:26.3]} 23... d4 {[%clk 0:01:14.3]} 24.
h6 {[%clk 0:00:13.1]} 24... Bf6 {[%clk 0:01:12.9]} 25. Red1 {[%clk 0:00:13.6]}
25... Red8 {[%clk 0:00:57.4]} 26. g4 {[%clk 0:00:10.8]} 26... d3 {[%clk
0:00:53.5]} 27. exd3 {[%clk 0:00:07.4]} 27... cxd3 {[%clk 0:00:53.8]} 28. Qb1
{[%clk 0:00:05.2]} 28... Qxa4 {[%clk 0:00:53.7]} 29. gxf5 {[%clk 0:00:04]} 29...
Rxc1 {[%clk 0:00:51.3]} 30. Qxc1 {[%clk 0:00:03.8]} 30... Nec5 {[%clk
0:00:46.7]} 31. fxg6 {[%clk 0:00:03.3]} 31... Bxf3 {[%clk 0:00:46.3]} 32. gxh7+
{[%clk 0:00:02.6]} 32... Kxh7 {[%clk 0:00:44.2]} 33. Bf5+ {[%clk 0:00:02.6]}
33... Kh8 {[%clk 0:00:44.5]} 34. Re1 {[%clk 0:00:03]} 34... Rg8+ {[%clk
0:00:43.5]} 35. Kh2 {[%clk 0:00:02.9]} 35... Qe8 {[%clk 0:00:43.1]} 36. Bh3
{[%clk 0:00:02]} 36... Qh5 {[%clk 0:00:42.7]} 37. Qe3 {[%clk 0:00:01]} 37...
Rg2+ {[%clk 0:00:42.5]} 38. Kh1 {[%clk 0:00:01.2]} 38... Qxh3+ {[%clk 0:00:43]}
0-1

[Event "Early-Titled-Tuesday-Blitz-June-18-2024"]
[Site "Chess.com"]
[Date "2024.06.18"]
[Round "10"]
[White "LaPiToB"]
[Black "Chaubunagungamaug1"]
[Result "0-1"]
[WhiteElo "2344"]
[BlackElo "2485"]
[TimeControl "180+1"]
[EndTime "9:57:08 PDT"]
[Termination "Chaubunagungamaug1 won by resignation"]

1. c4 {[%clk 0:02:59.7]} 1... Nf6 {[%clk 0:02:57]} 2. Nc3 {[%clk 0:02:58.4]}
2... c6 {[%clk 0:02:56.1]} 3. d4 {[%clk 0:02:54.3]} 3... d5 {[%clk 0:02:56.5]}
4. cxd5 {[%clk 0:02:54.1]} 4... cxd5 {[%clk 0:02:56.2]} 5. Bf4 {[%clk
0:02:54.7]} 5... Nc6 {[%clk 0:02:56.4]} 6. e3 {[%clk 0:02:55.2]} 6... a6 {[%clk
0:02:56.5]} 7. Be2 {[%clk 0:02:55.1]} 7... Bf5 {[%clk 0:02:56.5]} 8. g4 {[%clk
0:02:55.3]} 8... Bc8 {[%clk 0:02:36.7]} 9. h4 {[%clk 0:02:54.4]} 9... e6 {[%clk
0:02:35.8]} 10. Nf3 {[%clk 0:02:48.7]} 10... Bb4 {[%clk 0:02:35.4]} 11. Ne5
{[%clk 0:02:44.4]} 11... Qa5 {[%clk 0:02:29.6]} 12. Kf1 {[%clk 0:02:23.3]} 12...
Bxc3 {[%clk 0:02:09.1]} 13. bxc3 {[%clk 0:02:19]} 13... Ne4 {[%clk 0:02:09.4]}
14. Nxc6 {[%clk 0:02:06.4]} 14... bxc6 {[%clk 0:02:10.3]} 15. Rc1 {[%clk
0:02:01.2]} 15... Bd7 {[%clk 0:01:50.5]} 16. Rc2 {[%clk 0:01:57.2]} 16... c5
{[%clk 0:01:43.1]} 17. Kg2 {[%clk 0:01:44.4]} 17... Ba4 {[%clk 0:01:40.3]} 18.
Bf3 {[%clk 0:01:26.3]} 18... Nxc3 {[%clk 0:01:19.6]} 19. Qd2 {[%clk 0:01:23.3]}
19... Bxc2 {[%clk 0:01:20]} 20. Qxc2 {[%clk 0:01:22.7]} 20... cxd4 {[%clk
0:01:15.3]} 21. exd4 {[%clk 0:01:21.2]} 21... O-O {[%clk 0:00:32.1]} 22. Bd2
{[%clk 0:01:13.5]} 22... Rac8 {[%clk 0:00:31.4]} 23. Rc1 {[%clk 0:01:13.2]}
23... Qxa2 {[%clk 0:00:26.6]} 24. Bxc3 {[%clk 0:00:59.5]} 24... Qc4 {[%clk
0:00:25.8]} 25. Be2 {[%clk 0:00:57.3]} 25... Qc6 {[%clk 0:00:25.5]} 26. Qd3
{[%clk 0:00:54]} 26... a5 {[%clk 0:00:19.8]} 27. Bd2 {[%clk 0:00:52.7]} 27...
Qb6 {[%clk 0:00:19.8]} 28. Ra1 {[%clk 0:00:49.7]} 28... Ra8 {[%clk 0:00:19]} 29.
Qb5 {[%clk 0:00:46.6]} 29... Qxd4 {[%clk 0:00:14.9]} 30. Be3 {[%clk 0:00:40.2]}
30... Qxa1 {[%clk 0:00:14.4]} 31. Bd3 {[%clk 0:00:33]} 31... a4 {[%clk
0:00:13.3]} 32. h5 {[%clk 0:00:28.6]} 32... a3 {[%clk 0:00:12.1]} 33. g5 {[%clk
0:00:28.3]} 33... a2 {[%clk 0:00:11.7]} 34. g6 {[%clk 0:00:28.1]} 34... Qe5
{[%clk 0:00:09.8]} 35. gxh7+ {[%clk 0:00:26.3]} 35... Kh8 {[%clk 0:00:10.3]} 36.
Bd4 {[%clk 0:00:26]} 36... Qxd4 {[%clk 0:00:09.9]} 0-1

[Event "Early-Titled-Tuesday-Blitz-June-18-2024"]
[Site "Chess.com"]
[Date "2024.06.18"]
[Round "10"]
[White "atbenina64"]
[Black "EdenDzung06"]
[Result "1-0"]
[WhiteElo "2819"]
[BlackElo "2462"]
[TimeControl "180+1"]
[EndTime "9:57:13 PDT"]
[Termination "atbenina64 won on time"]

1. Nf3 {[%clk 0:03:00.9]} 1... Nf6 {[%clk 0:02:59.2]} 2. c4 {[%clk 0:03:00.9]}
2... b6 {[%clk 0:02:59.4]} 3. Nc3 {[%clk 0:02:59.8]} 3... Bb7 {[%clk 0:03:00]}
4. d4 {[%clk 0:02:59.3]} 4... e6 {[%clk 0:03:00.4]} 5. a3 {[%clk 0:02:56.3]}
5... Be7 {[%clk 0:02:59.8]} 6. Qc2 {[%clk 0:02:54.2]} 6... d5 {[%clk 0:02:57.6]}
7. cxd5 {[%clk 0:02:53.7]} 7... Nxd5 {[%clk 0:02:57.5]} 8. Nxd5 {[%clk
0:02:49.6]} 8... exd5 {[%clk 0:02:46.7]} 9. Bf4 {[%clk 0:02:45.3]} 9... Bd6
{[%clk 0:02:42.4]} 10. Bxd6 {[%clk 0:02:41]} 10... Qxd6 {[%clk 0:02:41.7]} 11.
Rc1 {[%clk 0:02:41.6]} 11... c6 {[%clk 0:02:35.7]} 12. e3 {[%clk 0:02:30.2]}
12... Nd7 {[%clk 0:02:32.5]} 13. Bd3 {[%clk 0:02:29.5]} 13... Nf6 {[%clk
0:02:30.8]} 14. Ne5 {[%clk 0:02:28.1]} 14... Rc8 {[%clk 0:02:27.7]} 15. b4
{[%clk 0:02:26]} 15... O-O {[%clk 0:02:25.8]} 16. f4 {[%clk 0:02:25.5]} 16... a5
{[%clk 0:02:15.9]} 17. Qb1 {[%clk 0:02:20.3]} 17... Ba8 {[%clk 0:01:51.9]} 18.
O-O {[%clk 0:02:13.1]} 18... c5 {[%clk 0:01:45.8]} 19. bxc5 {[%clk 0:02:02.9]}
19... bxc5 {[%clk 0:01:46.7]} 20. dxc5 {[%clk 0:01:43.6]} 20... Rxc5 {[%clk
0:01:44]} 21. Qb2 {[%clk 0:01:43.5]} 21... Ne4 {[%clk 0:01:32.2]} 22. Bxe4
{[%clk 0:01:39]} 22... dxe4 {[%clk 0:01:22.8]} 23. Rfd1 {[%clk 0:01:23]} 23...
Qc7 {[%clk 0:00:54]} 24. Kf2 {[%clk 0:00:57.3]} 24... Rc8 {[%clk 0:00:39.6]} 25.
Rxc5 {[%clk 0:00:48.7]} 25... Qxc5 {[%clk 0:00:38.7]} 26. Rd2 {[%clk 0:00:48.7]}
26... h5 {[%clk 0:00:20]} 27. Qb3 {[%clk 0:00:46.2]} 27... Qc7 {[%clk
0:00:17.4]} 28. Rd7 {[%clk 0:00:32.6]} 28... Qc2+ {[%clk 0:00:17.2]} 29. Qxc2
{[%clk 0:00:33.1]} 29... Rxc2+ {[%clk 0:00:17.9]} 30. Kg3 {[%clk 0:00:33.7]}
30... f6 {[%clk 0:00:14.8]} 31. Ng6 {[%clk 0:00:28.5]} 31... Kh7 {[%clk
0:00:07.7]} 32. f5 {[%clk 0:00:25.5]} 32... Bc6 {[%clk 0:00:04.4]} 33. Rd8
{[%clk 0:00:24]} 1-0

[Event "Early-Titled-Tuesday-Blitz-June-18-2024"]
[Site "Chess.com"]
[Date "2024.06.18"]
[Round "10"]
[White "Slovineanu"]
[Black "manitodeplomo"]
[Result "0-1"]
[WhiteElo "2550"]
[BlackElo "2663"]
[TimeControl "180+1"]
[EndTime "9:57:14 PDT"]
[Termination "manitodeplomo won on time"]

1. d4 {[%clk 0:02:58.6]} 1... d5 {[%clk 0:02:59.2]} 2. Nf3 {[%clk 0:02:58.3]}
2... c6 {[%clk 0:02:59.3]} 3. c4 {[%clk 0:02:57.7]} 3... dxc4 {[%clk 0:02:59.3]}
4. e3 {[%clk 0:02:58]} 4... b5 {[%clk 0:02:59.1]} 5. a4 {[%clk 0:02:56]} 5... e6
{[%clk 0:02:59.5]} 6. b3 {[%clk 0:02:53.9]} 6... Bb4+ {[%clk 0:02:58]} 7. Bd2
{[%clk 0:02:52.6]} 7... Bxd2+ {[%clk 0:02:56.6]} 8. Nfxd2 {[%clk 0:02:52.4]}
8... a5 {[%clk 0:02:41.5]} 9. bxc4 {[%clk 0:02:48.3]} 9... b4 {[%clk 0:02:40.4]}
10. Nb3 {[%clk 0:02:46.9]} 10... Nf6 {[%clk 0:02:39.6]} 11. Be2 {[%clk
0:02:45.3]} 11... O-O {[%clk 0:02:39.7]} 12. O-O {[%clk 0:02:44.8]} 12... Nbd7
{[%clk 0:02:36.6]} 13. Bf3 {[%clk 0:02:39.1]} 13... Qc7 {[%clk 0:02:28.7]} 14.
N1d2 {[%clk 0:02:36.9]} 14... Bb7 {[%clk 0:02:19]} 15. c5 {[%clk 0:02:36.5]}
15... e5 {[%clk 0:02:10.3]} 16. Nc4 {[%clk 0:02:21.2]} 16... exd4 {[%clk
0:02:09.5]} 17. exd4 {[%clk 0:02:21.1]} 17... Nd5 {[%clk 0:02:03.6]} 18. Bxd5
{[%clk 0:02:13.9]} 18... cxd5 {[%clk 0:02:03.6]} 19. Nd6 {[%clk 0:02:14.1]}
19... Bc6 {[%clk 0:02:03.3]} 20. Re1 {[%clk 0:01:56.1]} 20... Nf6 {[%clk
0:01:59.4]} 21. f3 {[%clk 0:01:52.4]} 21... Qd7 {[%clk 0:01:53.6]} 22. Nc1
{[%clk 0:01:22.5]} 22... Ne8 {[%clk 0:01:43.4]} 23. Nxe8 {[%clk 0:01:18.7]}
23... Rfxe8 {[%clk 0:01:43]} 24. Rxe8+ {[%clk 0:01:19.2]} 24... Qxe8 {[%clk
0:01:38.7]} 25. Kf2 {[%clk 0:01:11.5]} 25... Qb8 {[%clk 0:01:36.5]} 26. g3
{[%clk 0:01:09.2]} 26... Qe8 {[%clk 0:01:31.5]} 27. Nd3 {[%clk 0:00:59.1]} 27...
f6 {[%clk 0:01:21.8]} 28. Qb3 {[%clk 0:00:55.1]} 28... Qh5 {[%clk 0:01:12.4]}
29. h4 {[%clk 0:00:50.1]} 29... Re8 {[%clk 0:01:06.2]} 30. Re1 {[%clk
0:00:38.2]} 30... Rxe1 {[%clk 0:01:04.2]} 31. Nxe1 {[%clk 0:00:38.2]} 31... Qe8
{[%clk 0:01:03.4]} 32. Nd3 {[%clk 0:00:36.2]} 32... Bxa4 {[%clk 0:00:51.3]} 33.
Qxd5+ {[%clk 0:00:35.7]} 33... Kh8 {[%clk 0:00:51.6]} 34. Qd6 {[%clk 0:00:22.2]}
34... Bb5 {[%clk 0:00:49.3]} 35. Nc1 {[%clk 0:00:05.8]} 35... a4 {[%clk
0:00:43.1]} 36. d5 {[%clk 0:00:04.1]} 36... b3 {[%clk 0:00:42.2]} 37. Nxb3
{[%clk 0:00:03.3]} 37... axb3 {[%clk 0:00:41.9]} 38. c6 {[%clk 0:00:03.8]} 38...
b2 {[%clk 0:00:39.3]} 39. Qb4 {[%clk 0:00:01.3]} 39... Qe2+ {[%clk 0:00:38.4]}
40. Kg1 {[%clk 0:00:01.3]} 40... h6 {[%clk 0:00:37.6]} 41. c7 {[%clk 0:00:01]}
41... Bd7 {[%clk 0:00:37.1]} 0-1

[Event "Early-Titled-Tuesday-Blitz-June-18-2024"]
[Site "Chess.com"]
[Date "2024.06.18"]
[Round "10"]
[White "SuperGPatzer"]
[Black "Kors67"]
[Result "1-0"]
[WhiteElo "2122"]
[BlackElo "2248"]
[TimeControl "180+1"]
[EndTime "9:57:17 PDT"]
[Termination "SuperGPatzer won on time"]

1. g4 {[%clk 0:03:00.9]} 1... d5 {[%clk 0:02:57.6]} 2. h3 {[%clk 0:03:00.4]}
2... h5 {[%clk 0:02:54.8]} 3. g5 {[%clk 0:03:00.1]} 3... g6 {[%clk 0:02:53.4]}
4. d4 {[%clk 0:02:59.7]} 4... Bg7 {[%clk 0:02:52.5]} 5. Nc3 {[%clk 0:03:00.3]}
5... c5 {[%clk 0:02:51.1]} 6. dxc5 {[%clk 0:02:56.5]} 6... d4 {[%clk 0:02:50.5]}
7. Ne4 {[%clk 0:02:55.1]} 7... Be6 {[%clk 0:02:37.4]} 8. Bg2 {[%clk 0:02:50.4]}
8... Bd5 {[%clk 0:02:34.4]} 9. Nd6+ {[%clk 0:02:41.4]} 9... Qxd6 {[%clk
0:02:28.1]} 10. cxd6 {[%clk 0:02:40.1]} 10... Bxg2 {[%clk 0:02:28.5]} 11. Rh2
{[%clk 0:02:37.5]} 11... Bc6 {[%clk 0:02:27.6]} 12. Bf4 {[%clk 0:02:33.5]} 12...
e5 {[%clk 0:02:26.1]} 13. Bd2 {[%clk 0:02:23.2]} 13... Na6 {[%clk 0:02:15.5]}
14. c3 {[%clk 0:02:21.1]} 14... O-O-O {[%clk 0:02:13.7]} 15. cxd4 {[%clk
0:02:16.4]} 15... Rxd6 {[%clk 0:02:14.1]} 16. Nf3 {[%clk 0:01:52.6]} 16... exd4
{[%clk 0:02:13.2]} 17. Bf4 {[%clk 0:01:48.6]} 17... Rd8 {[%clk 0:02:11]} 18. Be5
{[%clk 0:01:41.1]} 18... f6 {[%clk 0:02:02.3]} 19. gxf6 {[%clk 0:01:39.6]} 19...
Nxf6 {[%clk 0:02:02.3]} 20. Rc1 {[%clk 0:01:32.7]} 20... Rhe8 {[%clk 0:01:44.6]}
21. Rxc6+ {[%clk 0:01:30.2]} 21... bxc6 {[%clk 0:01:44.2]} 22. Qa4 {[%clk
0:01:30.2]} 22... Kb7 {[%clk 0:01:42.9]} 23. Qb3+ {[%clk 0:01:17.5]} 23... Ka8
{[%clk 0:01:38.4]} 24. Qc4 {[%clk 0:01:12.6]} 24... Kb7 {[%clk 0:01:33]} 25.
Bxf6 {[%clk 0:01:09.5]} 25... Bxf6 {[%clk 0:01:30.2]} 26. Qf7+ {[%clk
0:01:09.2]} 26... Be7 {[%clk 0:01:30.4]} 27. Nxd4 {[%clk 0:01:02.6]} 27... Nc5
{[%clk 0:01:23.2]} 28. e3 {[%clk 0:00:50.8]} 28... Kb6 {[%clk 0:01:10.6]} 29.
Rg2 {[%clk 0:00:46.9]} 29... g5 {[%clk 0:01:03.3]} 30. b4 {[%clk 0:00:42.3]}
30... Nd3+ {[%clk 0:00:53.6]} 31. Kf1 {[%clk 0:00:42.4]} 31... Bxb4 {[%clk
0:00:45.4]} 32. Rxg5 {[%clk 0:00:28.8]} 32... Re7 {[%clk 0:00:36.5]} 33. Qc4
{[%clk 0:00:27.1]} 33... Bc5 {[%clk 0:00:24.8]} 34. Rxc5 {[%clk 0:00:25.2]}
34... Nxc5 {[%clk 0:00:23.9]} 35. Qb4+ {[%clk 0:00:25.6]} 35... Kc7 {[%clk
0:00:18.5]} 36. Qxc5 {[%clk 0:00:25.9]} 36... Rd6 {[%clk 0:00:18.6]} 37. Nb5+
{[%clk 0:00:25.3]} 1-0

[Event "Early-Titled-Tuesday-Blitz-June-18-2024"]
[Site "Chess.com"]
[Date "2024.06.18"]
[Round "10"]
[White "whiteglovethief"]
[Black "Crazy_girl99"]
[Result "1/2-1/2"]
[WhiteElo "2549"]
[BlackElo "2608"]
[TimeControl "180+1"]
[EndTime "9:57:20 PDT"]
[Termination "Game drawn by stalemate"]

1. d4 {[%clk 0:03:00.9]} 1... Nf6 {[%clk 0:02:57]} 2. c4 {[%clk 0:02:59.6]} 2...
e6 {[%clk 0:02:56.4]} 3. Nf3 {[%clk 0:02:59.5]} 3... d5 {[%clk 0:02:52.6]} 4. g3
{[%clk 0:02:59.8]} 4... Bb4+ {[%clk 0:02:51.4]} 5. Nbd2 {[%clk 0:02:58.6]} 5...
dxc4 {[%clk 0:02:50.9]} 6. Bg2 {[%clk 0:02:58.1]} 6... O-O {[%clk 0:02:50.8]} 7.
O-O {[%clk 0:02:54]} 7... b5 {[%clk 0:02:50.1]} 8. a4 {[%clk 0:02:52.4]} 8... c6
{[%clk 0:02:48.3]} 9. Qc2 {[%clk 0:02:49.6]} 9... Bb7 {[%clk 0:02:46.1]} 10. b3
{[%clk 0:02:48.4]} 10... cxb3 {[%clk 0:02:45.1]} 11. Nxb3 {[%clk 0:02:47.3]}
11... a5 {[%clk 0:02:43.5]} 12. Rd1 {[%clk 0:02:42.3]} 12... Nbd7 {[%clk
0:02:42.8]} 13. Bf4 {[%clk 0:02:41.6]} 13... Nd5 {[%clk 0:02:42.3]} 14. Ne5
{[%clk 0:02:34.4]} 14... Nxf4 {[%clk 0:02:35.1]} 15. gxf4 {[%clk 0:02:35.3]}
15... Nxe5 {[%clk 0:02:35]} 16. dxe5 {[%clk 0:02:31.7]} 16... Qb6 {[%clk
0:02:33.6]} 17. Rd7 {[%clk 0:02:16.3]} 17... Rad8 {[%clk 0:02:33.3]} 18. Rxb7
{[%clk 0:02:09.8]} 18... Qxb7 {[%clk 0:02:30.3]} 19. Bxc6 {[%clk 0:02:09.2]}
19... Qa7 {[%clk 0:02:19.3]} 20. axb5 {[%clk 0:02:06]} 20... a4 {[%clk
0:02:19.7]} 21. Qc4 {[%clk 0:02:03.2]} 21... Be1 {[%clk 0:01:37.6]} 22. e3
{[%clk 0:01:50.6]} 22... Qe7 {[%clk 0:01:14.3]} 23. Rxe1 {[%clk 0:01:38]} 23...
axb3 {[%clk 0:01:14]} 24. Qxb3 {[%clk 0:01:38.7]} 24... Rb8 {[%clk 0:01:14.2]}
25. Rd1 {[%clk 0:01:34.8]} 25... Qh4 {[%clk 0:01:12.4]} 26. Rd7 {[%clk 0:01:28]}
26... g5 {[%clk 0:01:08.8]} 27. Qc4 {[%clk 0:01:23.4]} 27... Kh8 {[%clk
0:01:03.8]} 28. Qd4 {[%clk 0:01:11.3]} 28... Rg8 {[%clk 0:01:02.5]} 29. fxg5
{[%clk 0:01:05.7]} 29... Rxg5+ {[%clk 0:01:01]} 30. Kf1 {[%clk 0:01:04.8]} 30...
Qh3+ {[%clk 0:00:53.3]} 31. Ke2 {[%clk 0:01:01.9]} 31... Rf5 {[%clk 0:00:53.3]}
32. b6 {[%clk 0:00:31]} 32... Qxh2 {[%clk 0:00:48.4]} 33. e4 {[%clk 0:00:31.3]}
33... Qh5+ {[%clk 0:00:29.1]} 34. Kd2 {[%clk 0:00:29.5]} 34... Qg5+ {[%clk
0:00:26.8]} 35. Kc2 {[%clk 0:00:25.5]} 35... Rxe5 {[%clk 0:00:23.8]} 36. b7
{[%clk 0:00:20.6]} 36... Qf6 {[%clk 0:00:23.2]} 37. Rxf7 {[%clk 0:00:18.1]}
37... Rc5+ {[%clk 0:00:19.6]} 38. Qxc5 {[%clk 0:00:18.6]} 38... Qxf7 {[%clk
0:00:20.2]} 39. Qe5+ {[%clk 0:00:16.7]} 39... Kg8 {[%clk 0:00:20.2]} 40. Qxb8+
{[%clk 0:00:16.7]} 40... Kg7 {[%clk 0:00:20.8]} 41. Qe5+ {[%clk 0:00:17]} 41...
Kg6 {[%clk 0:00:21.1]} 42. Qg3+ {[%clk 0:00:16.8]} 42... Kh6 {[%clk 0:00:20.3]}
43. b8=Q {[%clk 0:00:17.7]} 43... e5 {[%clk 0:00:20.6]} 44. Qbxe5 {[%clk
0:00:17.3]} 44... Qa2+ {[%clk 0:00:18.2]} 45. Kd1 {[%clk 0:00:17.5]} 45... Qd2+
{[%clk 0:00:17.6]} 46. Kxd2 {[%clk 0:00:16.3]} 1/2-1/2